fUSD/lending_fUSD_20260617
["ID","MTS","AMOUNT","RATE_DAILY","PERIOD"]
[425258969,1781635849000,-3543.0,0.00034222,10]
[425258965,1781635849000,-1140.6,0.00034178,2]
[425258975,1781635849000,-300.0,0.00034229,2]
[425258968,1781635849000,-175.33,0.00034216,120]
[425258967,1781635849000,-219.07,0.00034212,120]
[425258970,1781635849000,-300.0,0.00034229,2]
[425258971,1781635849000,-300.0,0.00034229,2]
[425258972,1781635849000,-300.0,0.00034229,2]
[425258976,1781635849000,-300.0,0.00034229,2]
[425258978,1781635849000,-300.0,0.00034229,2]
[425258991,1781635849000,-300.0,0.00034229,2]
[425258980,1781635849000,-300.0,0.00034229,2]
[425258982,1781635849000,-300.0,0.00034229,2]
[425258977,1781635849000,-300.0,0.00034229,2]
[425258983,1781635849000,-300.0,0.00034229,2]
[425258979,1781635849000,-300.0,0.00034229,2]
[425258981,1781635849000,-1099.56265256,0.00034229,2]
[425258986,1781635849000,-300.0,0.00034229,2]
[425258988,1781635849000,-300.0,0.00034229,2]
[425258985,1781635849000,-300.0,0.00034229,2]
[425258987,1781635849000,-300.0,0.00034229,2]
[425258990,1781635849000,-300.0,0.00034229,2]
[425258989,1781635849000,-300.0,0.00034229,2]
[425258993,1781635849000,-494.61116003,0.00034229,2]
[425258996,1781635849000,-300.0,0.00034229,2]
[425258997,1781635849000,-300.0,0.00034229,2]
[425258984,1781635849000,-300.0,0.00034229,2]
[425259021,1781635849000,-300.0,0.00034229,2]
[425259031,1781635849000,-310.80968515,0.00034229,2]
[425259087,1781635849000,-729.15388008,0.00034229,2]
[425259066,1781635849000,-300.0,0.00034229,2]
[425259067,1781635849000,-300.0,0.00034229,2]
[425259065,1781635849000,-300.0,0.00034229,2]
[425259063,1781635849000,-300.0,0.00034229,2]
[425259072,1781635849000,-300.0,0.00034229,2]
[425259073,1781635849000,-300.0,0.00034229,2]
[425259074,1781635849000,-300.0,0.00034229,2]
[425259076,1781635849000,-494.61116003,0.00034229,2]
[425259080,1781635849000,-300.0,0.00034229,2]
[425259075,1781635849000,-300.0,0.00034229,2]
[425259078,1781635849000,-300.0,0.00034229,2]
[425259083,1781635849000,-300.0,0.00034229,2]
[425259082,1781635849000,-300.0,0.00034229,2]
[425259084,1781635849000,-300.0,0.00034229,2]
[425259079,1781635849000,-300.0,0.00034229,2]
[425259081,1781635849000,-607.02265113,0.00034229,2]
[425259086,1781635849000,-536.0886118,0.00034229,2]
[425259096,1781635849000,-301.74779532,0.00034229,2]
[425259099,1781635849000,-300.0,0.00034229,2]
[425259101,1781635849000,-300.0,0.00034229,2]
[425259100,1781635849000,-300.0,0.00034229,2]
[425259098,1781635849000,-300.0,0.00034229,2]
[425259097,1781635849000,-300.0,0.00034229,2]
[425259085,1781635849000,-300.0,0.00034229,2]
[425259088,1781635849000,-300.0,0.00034229,2]
[425259026,1781635849000,-1804.85423076,0.00034229,2]
[425259089,1781635849000,-302.97495936,0.00034229,2]
[425259091,1781635849000,-300.0,0.00034229,2]
[425259093,1781635849000,-300.7600897,0.00034229,2]
[425259062,1781635849000,-1099.56265256,0.00034229,2]
[425259064,1781635849000,-300.0,0.00034229,2]
[425259077,1781635849000,-300.0,0.00034229,2]
[425259070,1781635849000,-300.0,0.00034229,2]
[425259039,1781635849000,-300.0,0.00034229,2]
[425259038,1781635849000,-596.49358704,0.00034229,2]
[425259061,1781635849000,-503.70036376,0.00034229,2]
[425259042,1781635849000,-513.27224443,0.00034229,2]
[425259032,1781635849000,-300.0,0.00034229,2]
[425259030,1781635849000,-300.0,0.00034229,2]
[425259043,1781635849000,-300.0,0.00034229,2]
[425259033,1781635849000,-300.0,0.00034229,2]
[425259034,1781635849000,-1346.28541318,0.00034229,2]
[425259037,1781635849000,-300.0,0.00034229,2]
[425259036,1781635849000,-300.0,0.00034229,2]
[425259035,1781635849000,-300.0,0.00034229,2]
[425259044,1781635849000,-583.56884083,0.00034229,2]
[425259049,1781635849000,-300.0,0.00034229,2]
[425259046,1781635849000,-453.6656999,0.00034229,2]
[425259040,1781635849000,-300.0,0.00034229,2]
[425259048,1781635849000,-300.0,0.00034229,2]
[425259047,1781635849000,-300.0,0.00034229,2]
[425259059,1781635849000,-300.0,0.00034229,2]
[425259071,1781635849000,-300.0,0.00034229,2]
[425259069,1781635849000,-300.0,0.00034229,2]
[425259058,1781635849000,-300.0,0.00034229,2]
[425259054,1781635849000,-300.0,0.00034229,2]
[425259056,1781635849000,-300.0,0.00034229,2]
[425259057,1781635849000,-300.0,0.00034229,2]
[425259051,1781635849000,-300.0,0.00034229,2]
[425259050,1781635849000,-300.0,0.00034229,2]
[425259052,1781635849000,-300.0,0.00034229,2]
[425259045,1781635849000,-300.0,0.00034229,2]
[425259055,1781635849000,-300.0,0.00034229,2]
[425259053,1781635849000,-445.48672195,0.00034229,2]
[425259149,1781635850000,-434.0936116,0.00034235,60]
[425259141,1781635850000,-300.0,0.00034229,2]
[425259140,1781635850000,-445.48672195,0.00034229,2]
[425259143,1781635850000,-500.0,0.00034235,60]
[425259135,1781635850000,-300.0,0.00034229,2]
[425259136,1781635850000,-300.0,0.00034229,2]
[425259134,1781635850000,-300.0,0.00034229,2]
[425259132,1781635850000,-300.0,0.00034229,2]
[425259131,1781635850000,-583.56884083,0.00034229,2]
[425259138,1781635850000,-300.0,0.00034229,2]
[425259150,1781635850000,-655.776746,0.00034235,60]
[425259137,1781635850000,-300.0,0.00034229,2]
[425259142,1781635850000,-294.0171387,0.00034235,60]
[425259144,1781635850000,-500.0,0.00034235,60]
[425259151,1781635850000,-500.0,0.00034235,60]
[425259148,1781635850000,-200.1489782,0.00034235,60]
[425259147,1781635850000,-690.9141396,0.00034235,60]
[425259146,1781635850000,-500.0,0.00034235,60]
[425259145,1781635850000,-920.3768114,0.00034235,60]
[425259155,1781635850000,-486.6827267,0.00034235,60]
[425259153,1781635850000,-985.6869494,0.00034235,60]
[425259163,1781635850000,-332.44357394,0.000343,120]
[425259157,1781635850000,-500.0,0.00034235,60]
[425259154,1781635850000,-762.5369612,0.00034235,60]
[425259160,1781635850000,-1072.73,0.00034247,30]
[425259130,1781635850000,-300.0,0.00034229,2]
[425259152,1781635850000,-500.0,0.00034235,60]
[425259133,1781635850000,-453.6656999,0.00034229,2]
[425259161,1781635850000,-250.0,0.00034289,7]
[425259139,1781635850000,-300.0,0.00034229,2]
[425259102,1781635850000,-300.0,0.00034229,2]
[425259103,1781635850000,-300.0,0.00034229,2]
[425259106,1781635850000,-528.9427319,0.00034229,2]
[425259104,1781635850000,-300.0,0.00034229,2]
[425259108,1781635850000,-300.0,0.00034229,2]
[425259110,1781635850000,-300.0,0.00034229,2]
[425259105,1781635850000,-345.2942186,0.00034229,2]
[425259109,1781635850000,-300.0,0.00034229,2]
[425259111,1781635850000,-868.04256557,0.00034229,2]
[425259112,1781635850000,-953.01887079,0.00034229,2]
[425259107,1781635850000,-300.0,0.00034229,2]
[425259114,1781635850000,-300.0,0.00034229,2]
[425259113,1781635850000,-1804.85423076,0.00034229,2]
[425259127,1781635850000,-300.0,0.00034229,2]
[425259124,1781635850000,-300.0,0.00034229,2]
[425259126,1781635850000,-596.49358704,0.00034229,2]
[425259125,1781635850000,-300.0,0.00034229,2]
[425259117,1781635850000,-1017.94666487,0.00034229,2]
[425259118,1781635850000,-300.0,0.00034229,2]
[425259115,1781635850000,-300.0,0.00034229,2]
[425259116,1781635850000,-300.0,0.00034229,2]
[425259119,1781635850000,-310.80968515,0.00034229,2]
[425259121,1781635850000,-300.0,0.00034229,2]
[425259120,1781635850000,-300.0,0.00034229,2]
[425259122,1781635850000,-1346.28541318,0.00034229,2]
[425259123,1781635850000,-300.0,0.00034229,2]
[425259129,1781635850000,-513.27224443,0.00034229,2]
[425259128,1781635850000,-300.0,0.00034229,2]
[425259156,1781635850000,-217.80222,0.00034235,60]
[425259166,1781635850000,-1140.6,0.00034384,2]
[425259162,1781635850000,-250.0,0.00034289,7]
[425259192,1781635850000,-6940.98531995,0.00034943,30]
[425259193,1781635850000,-461.27574221,0.00034964,30]
[425259197,1781635850000,-151.435,0.00035,2]
[425259195,1781635850000,-150.0,0.00035,2]
[425259200,1781635850000,-1416.1462627,0.00035,120]
[425259199,1781635850000,-1264.33058709,0.00035,120]
[425259198,1781635850000,-161.55800474,0.00035,120]
[425259202,1781635850000,-587.96712675,0.00035,120]
[425259201,1781635850000,-388.63141773,0.00035,120]
[425259210,1781635850000,-412.0,0.00035,2]
[425259204,1781635850000,-164.94534788,0.00035,120]
[425259209,1781635850000,-190.91066939,0.00035,120]
[425259207,1781635850000,-393.84337441,0.00035,120]
[425259208,1781635850000,-255.10962317,0.00035,5]
[425259206,1781635850000,-179.25244946,0.00035,120]
[425259205,1781635850000,-703.47784449,0.00035,120]
[425259212,1781635850000,-397.71917115,0.00035,120]
[425259220,1781635850000,-240.43830193,0.00035,120]
[425259221,1781635850000,-1140.6,0.00035,2]
[425259215,1781635850000,-192.57435081,0.00035,120]
[425259211,1781635850000,-390.74924321,0.00035,120]
[425259213,1781635850000,-177.51975711,0.00035,120]
[425259217,1781635850000,-800.0,0.00035,7]
[425259214,1781635850000,-915.93030031,0.00035,120]
[425259219,1781635850000,-717.65445761,0.00035,120]
[425259216,1781635850000,-315.06178872,0.00035,120]
[425259158,1781635850000,-500.0,0.00034235,60]
[425259194,1781635850000,-372.277443,0.00034978,120]
[425259191,1781635850000,-2022.2244,0.00034925,2]
[425259203,1781635850000,-350.94364227,0.00035,120]
[425259190,1781635850000,-1500.0,0.000349,7]
[425259159,1781635850000,-685.8614283,0.00034235,60]
[425259165,1781635850000,-385.745802,0.00034378,120]
[425259172,1781635850000,-1000.0,0.00034569,2]
[425259164,1781635850000,-403.58,0.00034302,5]
[425259196,1781635850000,-150.0,0.00035,2]
[425259167,1781635850000,-200.0,0.000344,13]
[425259171,1781635850000,-1000.0,0.00034569,2]
[425259168,1781635850000,-1357.41849547,0.00034432,7]
[425259218,1781635850000,-800.0,0.00035,7]
[425259170,1781635850000,-2022.2244,0.00034526,2]
[425259174,1781635850000,-1200.0,0.00034569,2]
[425259173,1781635850000,-1067.25,0.00034569,2]
[425259176,1781635850000,-585.0,0.00034613,10]
[425259186,1781635850000,-150.348301,0.0003483,2]
[425259169,1781635850000,-1072.73,0.00034452,30]
[425259181,1781635850000,-3168.75752638,0.00034765,30]
[425259175,1781635850000,-1140.6,0.00034589,2]
[425259189,1781635850000,-519.80465135,0.000349,60]
[425259187,1781635850000,-1538.68420393,0.00034853,30]
[425259182,1781635850000,-553.41199225,0.00034776,30]
[425259184,1781635850000,-1500.0,0.00034795,2]
[425259185,1781635850000,-1140.6,0.00034795,2]
[425259188,1781635850000,-669.39225314,0.00034863,30]
[425259178,1781635850000,-2022.2244,0.00034659,2]
[425259177,1781635850000,-1072.73,0.00034658,30]
[425259183,1781635850000,-2022.2244,0.00034792,2]
[425259180,1781635850000,-658.41,0.000347,17]
[425259179,1781635850000,-509.857401,0.00034678,120]
[425259246,1781635851000,-396.85,0.00035261,5]
[425259226,1781635851000,-173.0,0.00035009,30]
[425259247,1781635851000,-1072.72,0.00035274,30]
[425259238,1781635851000,-158.0,0.00035012,30]
[425259245,1781635851000,-6106.7512942,0.00035258,11]
[425259233,1781635851000,-189.0,0.00035009,30]
[425259232,1781635851000,-394.0,0.00035009,30]
[425259230,1781635851000,-158.0,0.00035009,30]
[425259228,1781635851000,-751.0,0.00035009,30]
[425259225,1781635851000,-184.0,0.00035009,30]
[425259223,1781635851000,-4586.0,0.00035,5]
[425259229,1781635851000,-1267.0,0.00035009,30]
[425259235,1781635851000,-677.0,0.00035012,30]
[425259231,1781635851000,-153.0,0.00035009,30]
[425259234,1781635851000,-198.0,0.00035012,30]
[425259224,1781635851000,-4508.0,0.00035,5]
[425259222,1781635851000,-200.0,0.00035,120]
[425259236,1781635851000,-157.0,0.00035012,30]
[425259227,1781635851000,-152.0,0.00035009,30]
[425259237,1781635851000,-364.0,0.00035012,30]
[425259260,1781635851000,-100000.0,0.00035455,30]
[425259241,1781635851000,-669.39225314,0.00035068,30]
[425259262,1781635851000,-4460.0,0.00035455,5]
[425259259,1781635851000,-80000.0,0.00035455,60]
[425259261,1781635851000,-100000.0,0.00035455,7]
[425259263,1781635851000,-1804.75622403,0.00035456,2]
[425259258,1781635851000,-80096.94325796,0.00035455,90]
[425259255,1781635851000,-500.0,0.00035454,2]
[425259257,1781635851000,-100000.0,0.00035455,120]
[425259254,1781635851000,-500.0,0.00035454,2]
[425259256,1781635851000,-4449.6678731,0.00035455,2]
[425259253,1781635851000,-491.86,0.000354,7]
[425259250,1781635851000,-311.94,0.00035303,10]
[425259251,1781635851000,-2022.2244,0.00035323,2]
[425259252,1781635851000,-200.0,0.000354,14]
[425259249,1781635851000,-150.0,0.00035285,2]
[425259248,1781635851000,-306.537662,0.00035279,120]
[425259243,1781635851000,-2022.2244,0.0003519,2]
[425259244,1781635851000,-1140.6,0.00035205,2]
[425259240,1781635851000,-2022.2244,0.00035057,2]
[425259242,1781635851000,-585.0,0.00035147,10]
[425259239,1781635851000,-190.89,0.0003503,30]
[425259264,1781635853000,-217.46817597,0.00035456,2]
[425259265,1781635853000,-190.89,0.0003546,69]
[425259267,1781635853000,-416.61981258,0.00035479,30]
[425259266,1781635853000,-175.07,0.00035475,30]
[425259284,1781635854000,-300.0,0.00034229,2]
[425259294,1781635854000,-2174.0,0.00035589,120]
[425259281,1781635854000,-598.0,0.00029308,10]
[425259282,1781635854000,-300.0,0.00034229,2]
[425259279,1781635854000,-1000.0,0.00027397,2]
[425259283,1781635854000,-300.0,0.00034229,2]
[425259280,1781635854000,-1486.02,0.0002863,30]
[425259285,1781635854000,-656.10018742,0.00035479,30]
[425259278,1781635854000,-1000.0,0.00027397,2]
[425259277,1781635854000,-1000.0,0.00027397,2]
[425259274,1781635854000,-1000.0,0.00027397,2]
[425259273,1781635854000,-1000.0,0.00027397,2]
[425259275,1781635854000,-1000.0,0.00027397,2]
[425259270,1781635854000,-1000.0,0.00027397,2]
[425259272,1781635854000,-1000.0,0.00027397,2]
[425259271,1781635854000,-1000.0,0.00027397,2]
[425259268,1781635854000,-150.045,0.0002168,2]
[425259269,1781635854000,-1000.0,0.00027397,2]
[425259276,1781635854000,-1000.0,0.00027397,2]
[425259289,1781635854000,-4524.0,0.00035507,5]
[425259299,1781635854000,-1284.826,0.00035609,2]
[425259290,1781635854000,-1001.0,0.00035562,7]
[425259292,1781635854000,-1707.0,0.00035589,120]
[425259308,1781635854000,-426.87354429,0.00027397,2]
[425259307,1781635854000,-1000.0,0.00027397,2]
[425259309,1781635854000,-573.12645571,0.00027397,2]
[425259306,1781635854000,-1000.0,0.00027397,2]
[425259305,1781635854000,-934.0,0.0002468,2]
[425259304,1781635854000,-934.0,0.0002168,2]
[425259301,1781635854000,-623.73209847,0.00035609,2]
[425259298,1781635854000,-491.86,0.000356,7]
[425259302,1781635854000,-896.26809271,0.00035616,60]
[425259297,1781635854000,-400.0,0.00035591,60]
[425259296,1781635854000,-5315.0,0.00035591,10]
[425259303,1781635854000,-107.64112616,0.00035616,30]
[425259295,1781635854000,-2022.2244,0.00035589,2]
[425259291,1781635854000,-359.205212,0.00035579,120]
[425259286,1781635854000,-398.0,0.00035493,2]
[425259287,1781635854000,-800.0,0.000355,7]
[425259288,1781635854000,-800.0,0.000355,7]
[425259293,1781635854000,-1707.0,0.00035589,120]
[425259300,1781635854000,-843.02020153,0.00035609,2]
[425259314,1781635855000,-1000.0,0.00027397,2]
[425259312,1781635855000,-13.00065351,0.00027397,2]
[425259311,1781635855000,-1000.0,0.00027397,2]
[425259310,1781635855000,-1000.0,0.00027397,2]
[425259313,1781635855000,-986.99934649,0.00027397,2]
[425259315,1781635855000,-1000.0,0.00027397,2]
[425259316,1781635855000,-1000.0,0.00027397,2]
[425259320,1781635855000,-300.0,0.00027397,2]
[425259317,1781635855000,-186.1916217,0.00027397,2]
[425259319,1781635855000,-1000.0,0.00027397,2]
[425259323,1781635855000,-521.78127277,0.0002863,30]
[425259324,1781635855000,-1089.78899,0.0002863,30]
[425259321,1781635855000,-623.4316217,0.0002768,2]
[425259322,1781635855000,-310.5683783,0.0002768,2]
[425259318,1781635855000,-813.8083783,0.00027397,2]
[425259326,1781636067000,250.0,0.00014,2]
[425259327,1781636071000,633.18749293,0.00028581,120]
[425259328,1781636078000,358.51517898,8e-05,2]
[425259332,1781636408000,3215.193286,7.945e-05,2]
[425259334,1781636647000,2703.244138,7.945e-05,2]
[425259336,1781636929000,151.0,0.0001442,2]
[425259337,1781636933000,151.0,0.0001442,2]
[425259338,1781636936000,151.0,0.0001442,2]
[425259339,1781636939000,151.0,0.0001442,2]
[425259351,1781637031000,-321.0,0.0001488,2]
[425259350,1781637031000,-150.0,0.0001488,2]
[425259348,1781637031000,-314.0,0.0001488,2]
[425259346,1781637031000,-152.0,0.0001488,2]
[425259345,1781637031000,-321.0,0.0001488,2]
[425259352,1781637031000,-319.0,0.0001488,2]
[425259347,1781637031000,-317.0,0.0001488,2]
[425259344,1781637031000,-150.0,0.0001488,2]
[425259342,1781637031000,-151.0,0.0001488,2]
[425259343,1781637031000,-150.0,0.0001488,2]
[425259341,1781637031000,-150.0,0.0001488,2]
[425259349,1781637031000,-319.0,0.0001488,2]
[425259353,1781637031000,-151.0,0.0001488,2]
[425259357,1781637031000,-152.0,0.0001488,2]
[425259364,1781637031000,-151.0,0.0001488,2]
[425259356,1781637031000,-319.0,0.0001488,2]
[425259370,1781637031000,-318.0,0.0001488,2]
[425259368,1781637031000,-310.0,0.0001488,2]
[425259369,1781637031000,-152.0,0.0001488,2]
[425259366,1781637031000,-153.0,0.0001488,2]
[425259361,1781637031000,-153.0,0.0001488,2]
[425259367,1781637031000,-309.0,0.0001488,2]
[425259363,1781637031000,-506.85702275,0.0001488,2]
[425259355,1781637031000,-312.0,0.0001488,2]
[425259354,1781637031000,-314.0,0.0001488,2]
[425259358,1781637031000,-314.0,0.0001488,2]
[425259360,1781637031000,-318.0,0.0001488,2]
[425259365,1781637031000,-151.0,0.0001488,2]
[425259395,1781637032000,-151.0,0.00014931,2]
[425259382,1781637032000,-151.0,0.00014881,2]
[425259390,1781637032000,-300.4758,0.000149,2]
[425259384,1781637032000,-153.0,0.00014882,2]
[425259393,1781637032000,-151.0,0.00014907,2]
[425259405,1781637032000,-500.0,0.00014999,2]
[425259398,1781637032000,-11226.73633333,0.00014989,2]
[425259394,1781637032000,-152.0,0.00014931,2]
[425259406,1781637032000,-500.0,0.00014999,2]
[425259397,1781637032000,-15766.79286726,0.00014989,2]
[425259399,1781637032000,-500.0,0.00014999,2]
[425259386,1781637032000,-319.0,0.00014882,2]
[425259401,1781637032000,-500.0,0.00014999,2]
[425259396,1781637032000,-150.0,0.00014958,2]
[425259385,1781637032000,-153.0,0.00014882,2]
[425259380,1781637032000,-314.0,0.00014881,2]
[425259387,1781637032000,-151.0,0.00014899,2]
[425259372,1781637032000,-150.0,0.0001488,2]
[425259371,1781637032000,-320.0,0.0001488,2]
[425259375,1781637032000,-309.0,0.0001488,2]
[425259373,1781637032000,-316.0,0.0001488,2]
[425259376,1781637032000,-151.0,0.0001488,2]
[425259377,1781637032000,-314.0,0.0001488,2]
[425259389,1781637032000,-169.79571728,0.000149,2]
[425259378,1781637032000,-315.0,0.0001488,2]
[425259374,1781637032000,-318.0,0.0001488,2]
[425259381,1781637032000,-320.0,0.00014881,2]
[425259392,1781637032000,-150.0,0.00014901,2]
[425259391,1781637032000,-1071.6,0.000149,2]
[425259383,1781637032000,-725.958,0.00014882,2]
[425259388,1781637032000,-607.24948059,0.000149,2]
[425259379,1781637032000,-319.0,0.0001488,2]
[425259404,1781637032000,-500.0,0.00014999,2]
[425259409,1781637032000,-500.0,0.00014999,2]
[425259403,1781637032000,-500.0,0.00014999,2]
[425259423,1781637032000,-500.0,0.00014999,2]
[425259421,1781637032000,-500.0,0.00014999,2]
[425259429,1781637032000,-500.0,0.00014999,2]
[425259427,1781637032000,-500.0,0.00014999,2]
[425259426,1781637032000,-500.0,0.00014999,2]
[425259428,1781637032000,-500.0,0.00014999,2]
[425259425,1781637032000,-500.0,0.00014999,2]
[425259431,1781637032000,-500.0,0.00014999,2]
[425259433,1781637032000,-500.0,0.00014999,2]
[425259435,1781637032000,-500.0,0.00014999,2]
[425259436,1781637032000,-156.27332803,0.00014999,2]
[425259437,1781637032000,-343.72667197,0.00014999,2]
[425259438,1781637032000,-216.8738368,0.00014999,2]
[425259400,1781637032000,-500.0,0.00014999,2]
[425259434,1781637032000,-500.0,0.00014999,2]
[425259432,1781637032000,-500.0,0.00014999,2]
[425259430,1781637032000,-500.0,0.00014999,2]
[425259422,1781637032000,-500.0,0.00014999,2]
[425259424,1781637032000,-500.0,0.00014999,2]
[425259407,1781637032000,-500.0,0.00014999,2]
[425259418,1781637032000,-500.0,0.00014999,2]
[425259416,1781637032000,-500.0,0.00014999,2]
[425259413,1781637032000,-500.0,0.00014999,2]
[425259410,1781637032000,-500.0,0.00014999,2]
[425259402,1781637032000,-500.0,0.00014999,2]
[425259412,1781637032000,-500.0,0.00014999,2]
[425259411,1781637032000,-500.0,0.00014999,2]
[425259414,1781637032000,-500.0,0.00014999,2]
[425259417,1781637032000,-500.0,0.00014999,2]
[425259415,1781637032000,-500.0,0.00014999,2]
[425259419,1781637032000,-500.0,0.00014999,2]
[425259420,1781637032000,-500.0,0.00014999,2]
[425259408,1781637032000,-500.0,0.00014999,2]
[425259444,1781637038000,-500.0,0.00014999,2]
[425259441,1781637038000,-283.1261632,0.00014999,2]
[425259440,1781637038000,-313.0,0.0001488,2]
[425259442,1781637038000,-500.0,0.00014999,2]
[425259443,1781637038000,-500.0,0.00014999,2]
[425259446,1781637038000,-500.0,0.00014999,2]
[425259457,1781637038000,-500.0,0.00014999,2]
[425259459,1781637038000,-176.7652605,0.00014999,2]
[425259449,1781637038000,-500.0,0.00014999,2]
[425259451,1781637038000,-284.82679262,0.00014999,2]
[425259455,1781637038000,-500.0,0.00014999,2]
[425259453,1781637038000,-500.0,0.00014999,2]
[425259445,1781637038000,-500.0,0.00014999,2]
[425259484,1781637040000,-113.8652605,0.00014999,2]
[425259480,1781637040000,-310.0,0.0001488,2]
[425259482,1781637040000,-300.0,0.00014999,2]
[425259481,1781637040000,-323.2347395,0.00014999,2]
[425259483,1781637040000,-300.0,0.00014999,2]
[425259485,1781637040000,-186.1347395,0.00014999,2]
[425259488,1781637040000,-300.0,0.00014999,2]
[425259486,1781637040000,-666.0,0.00014999,2]
[425259492,1781637040000,-329.25939908,0.00015,2]
[425259490,1781637040000,-495.73851442,0.00014999,2]
[425259487,1781637040000,-300.0,0.00014999,2]
[425259491,1781637040000,-300.0,0.00014999,2]
[425259489,1781637040000,-170.26148558,0.00014999,2]
[425259504,1781637042000,-151.0,0.0001488,2]
[425259505,1781637042000,-360.2450525,0.00015,2]
[425259512,1781637043000,-7628.2236292,0.00015,2]
[425259511,1781637043000,-727.35016765,0.00015,2]
[425259521,1781637046000,-1822.35539117,0.00014889,2]
[425259520,1781637046000,-151.0,0.0001488,2]
[425259523,1781637046000,-413.9,0.00014889,2]
[425259524,1781637046000,-622.38500003,0.00014889,2]
[425259522,1781637046000,-1157.7,0.00014889,2]
[425259529,1781637209000,580.766,0.000147,2]
[425259531,1781637559000,151.0,0.00014424,2]
[425259532,1781637563000,151.0,0.00014424,2]
[425259533,1781637566000,151.0,0.00014424,2]
[425259534,1781637570000,151.0,0.00014424,2]
[425259536,1781637599000,166.66,0.00014398,2]
[425259537,1781637599000,166.66,0.00014695,2]
[425259535,1781637599000,166.66,0.00014101,2]
[425259540,1781637876000,250.0,0.00014,2]
[425259541,1781638188000,151.0,0.00014427,2]
[425259542,1781638191000,151.0,0.00014427,2]
[425259543,1781638195000,151.0,0.00014427,2]
[425259549,1781638231000,-300.0,0.00014833,2]
[425259548,1781638231000,-8792.6652,0.00014781,2]
[425259546,1781638231000,-412.7013,0.00014773,2]
[425259547,1781638231000,-300.0,0.0001478,2]
[425259567,1781638232000,-500.0,0.00014878,2]
[425259564,1781638232000,-500.0,0.00014878,2]
[425259563,1781638232000,-500.0,0.00014878,2]
[425259561,1781638232000,-500.0,0.00014878,2]
[425259560,1781638232000,-500.0,0.00014878,2]
[425259559,1781638232000,-500.0,0.00014878,2]
[425259558,1781638232000,-500.0,0.00014878,2]
[425259553,1781638232000,-500.0,0.00014878,2]
[425259554,1781638232000,-500.0,0.00014878,2]
[425259556,1781638232000,-500.0,0.00014878,2]
[425259555,1781638232000,-367.17114112,0.00014878,2]
[425259551,1781638232000,-266.69705861,0.00014878,2]
[425259550,1781638232000,-298.51540877,0.00014833,2]
[425259562,1781638232000,-500.0,0.00014878,2]
[425259557,1781638232000,-500.0,0.00014878,2]
[425259566,1781638232000,-500.0,0.00014878,2]
[425259552,1781638232000,-617.58612147,0.00014878,2]
[425259568,1781638232000,-500.0,0.00014878,2]
[425259565,1781638232000,-500.0,0.00014878,2]
[425259588,1781638232000,-500.0,0.00014878,2]
[425259591,1781638232000,-500.0,0.00014878,2]
[425259586,1781638232000,-500.0,0.00014878,2]
[425259584,1781638232000,-500.0,0.00014878,2]
[425259575,1781638232000,-78.89112974,0.00014878,2]
[425259579,1781638232000,-500.0,0.00014878,2]
[425259593,1781638232000,-178.89112974,0.00014878,2]
[425259577,1781638232000,-421.10887026,0.00014878,2]